bitfinex-derivatives/quotes_BTCF0:USTF0_20241103
["timestamp","ask_amount","ask_price","bid_price","bid_amount"]
[1730594908284,0.03605973,69303.0,69302.0,0.10774643]
[1730594908902,0.03605973,69303.0,69302.0,0.1943004]
[1730594909417,0.03605973,69303.0,69302.0,0.10774643]
[1730594914194,0.03605973,69303.0,69302.0,0.17991243]
[1730594914398,0.0639369,69303.0,69302.0,0.072166]
[1730594915496,0.06393697,69303.0,69302.0,0.072166]
[1730594915881,0.07217,69299.0,69298.0,0.072169]
[1730594916080,0.07217,69299.0,69298.0,0.16319898]
[1730594919792,0.072165,69303.0,69302.0,0.072164]
[1730594921491,0.3608,69304.0,69302.0,0.30801]
[1730594921702,0.072165,69303.0,69302.0,0.072164]
[1730594922000,0.072165,69303.0,69302.0,0.30801]
[1730594928906,0.072165,69303.0,69302.0,0.30737937]
[1730594931791,0.072165,69303.0,69302.0,0.23521537]
[1730594933406,0.3608,69304.0,69302.0,0.23555045]
[1730594933595,0.432963,69304.0,69303.0,0.23556127]
[1730594936620,0.432963,69304.0,69296.0,0.072171]
[1730594936621,0.072171,69297.0,69296.0,0.072171]
[1730594936803,0.25857618,69297.0,69296.0,0.072171]
[1730594937208,0.33821459,69297.0,69296.0,0.072171]
[1730594938100,0.23144783,69297.0,69296.0,0.072171]
[1730594938297,0.072174,69294.0,69293.0,0.3608]
[1730594938498,0.17968958,69294.0,69293.0,0.3608]
[1730594939105,0.17968958,69294.0,69293.0,0.432975]
[1730594939405,0.17968958,69294.0,69293.0,0.3608]
[1730594939619,0.27071956,69294.0,69293.0,0.3608]
[1730594940107,0.42923185,69294.0,69293.0,0.3608]
[1730594940300,0.38996658,69294.0,69293.0,0.3608]
[1730594940501,0.33820187,69294.0,69293.0,0.3608]
[1730594941598,0.17968958,69294.0,69293.0,0.3608]
[1730594941805,0.27071956,69294.0,69293.0,0.3608]
[1730594942010,0.48099664,69294.0,69293.0,0.3608]
[1730594942209,0.32248435,69294.0,69293.0,0.3608]
[1730594942604,0.32248435,69294.0,69281.0,0.072187]
[1730594942605,0.072179,69289.0,69281.0,0.072187]
[1730594942806,0.072179,69289.0,69280.0,0.09102998]
[1730594942807,0.16320898,69289.0,69282.0,0.072186]
[1730594942998,0.32250568,69289.0,69282.0,0.072186]
[1730594943197,0.27074089,69289.0,69283.0,0.072185]
[1730594943409,0.27074089,69289.0,69284.0,0.072184]
[1730594943813,0.21497377,69289.0,69284.0,0.072184]
[1730594944413,0.12394379,69289.0,69284.0,0.072184]
[1730594944624,0.072179,69289.0,69284.0,0.072184]
[1730594945208,0.072179,69289.0,69287.0,0.3608]
[1730594947916,0.072179,69289.0,69285.0,0.072183]
[1730594948217,0.072179,69289.0,69287.0,0.3608]
[1730594949523,0.072179,69289.0,69288.0,0.13045174]
[1730594949715,0.09102998,69292.0,69288.0,0.3870256]
[1730594949909,0.072179,69289.0,69288.0,0.3870256]
[1730594951522,0.072179,69289.0,69288.0,0.23807846]
[1730594952020,0.072179,69289.0,69288.0,0.13045174]
[1730594954720,0.1354071,69289.0,69288.0,0.00216481]
[1730594959023,0.03606735,69289.0,69288.0,0.10939289]
[1730594963615,0.03606735,69289.0,69288.0,0.10917282]
[1730594964825,0.03606735,69289.0,69288.0,0.18135282]
[1730594965627,0.072176,69293.0,69292.0,0.072175]
[1730594965829,0.072176,69293.0,69292.0,0.17918301]
[1730594966928,0.1797066,69293.0,69292.0,0.072175]
[1730594969327,0.24409489,69293.0,69292.0,0.072175]
[1730594969528,0.1797066,69293.0,69292.0,0.072175]
[1730594969729,0.24413094,69293.0,69292.0,0.072175]
[1730594969932,0.32378048,69293.0,69292.0,0.072175]
[1730594970234,0.1797066,69293.0,69292.0,0.072175]
[1730594970532,0.17970465,69293.0,69292.0,0.072175]
[1730594971329,0.24412775,69293.0,69292.0,0.072175]
[1730594971524,0.17970465,69293.0,69292.0,0.072175]
[1730594972321,0.24416983,69293.0,69292.0,0.072175]
[1730594972528,0.27951507,69293.0,69292.0,0.072175]
[1730594972731,0.32381793,69293.0,69292.0,0.072175]
[1730594974034,0.32381793,69293.0,69292.0,0.30689319]
[1730594974035,0.14411328,69293.0,69292.0,0.30689319]
[1730594974829,0.21628928,69293.0,69292.0,0.30689319]
[1730594978530,0.072176,69293.0,69292.0,0.30689319]
[1730594982141,0.072176,69293.0,69292.0,0.26589504]
[1730594984243,0.072176,69293.0,69292.0,0.26530088]
[1730594984934,0.072176,69293.0,69292.0,0.17868779]
[1730594986035,0.072176,69293.0,69292.0,0.26530088]
[1730594986836,0.072176,69293.0,69292.0,0.30563401]
[1730594987031,0.072176,69293.0,69292.0,0.17868779]
[1730594989044,0.10005698,69293.0,69292.0,0.072175]
[1730594989555,0.17970627,69293.0,69292.0,0.072175]
[1730594991343,0.25857956,69293.0,69292.0,0.072175]
[1730594991657,0.23147452,69293.0,69292.0,0.072175]
[1730594991941,0.15929843,69293.0,69292.0,0.072175]
[1730594992156,0.10753021,69293.0,69292.0,0.072175]
[1730594996144,0.10753021,69293.0,69292.0,0.505135]
[1730594997151,0.072166,69302.0,69301.0,0.072167]
[1730594997386,0.072166,69302.0,69301.0,0.30590483]
[1730594997860,0.072166,69302.0,69301.0,0.30596931]
[1730594999062,0.16319598,69302.0,69301.0,0.30596931]
[1730594999363,0.16319598,69302.0,69301.0,0.18390231]
[1730595000745,0.59607598,69302.0,69294.0,0.10100364]
[1730595000950,0.072173,69295.0,69294.0,0.10100364]
[1730595001156,0.072175,69293.0,69292.0,0.10100364]
[1730595001342,0.16320498,69293.0,69292.0,0.24723533]
[1730595001564,0.16320498,69293.0,69292.0,0.10100364]
[1730595002154,0.072176,69292.0,69291.0,0.17317964]
[1730595002356,0.072176,69292.0,69291.0,0.3194507]
[1730595003156,0.072176,69292.0,69291.0,0.6802507]
[1730595003542,0.45182998,69293.0,69290.0,0.10100364]
[1730595003746,0.19420698,69291.0,69290.0,0.10100364]
[1730595003957,0.03536098,69291.0,69289.0,0.10100364]
[1730595004158,0.072184,69287.0,69282.0,0.3608]
[1730595004459,0.158488,69283.0,69282.0,0.432986]
[1730595004763,0.19109716,69283.0,69282.0,0.432986]
[1730595004959,0.19109716,69283.0,69282.0,0.072186]
[1730595004960,0.2707499,69283.0,69282.0,0.072186]
[1730595005150,0.32252983,69283.0,69282.0,0.072186]
[1730595006657,0.32252983,69283.0,69280.0,0.0306]
[1730595006658,0.25034483,69283.0,69280.0,0.0306]
[1730595006960,0.072193,69276.0,69274.0,0.033]
[1730595007174,0.25843197,69276.0,69275.0,0.432994]
[1730595007371,0.23151049,69276.0,69275.0,0.432994]
[1730595007659,0.15931749,69276.0,69275.0,0.52402398]
[1730595007864,0.10754125,69276.0,69275.0,0.52402398]
[1730595008065,0.15933199,69276.0,69275.0,0.52402398]
[1730595008257,0.11501797,69276.0,69275.0,0.52402398]
[1730595008866,0.02788758,69276.0,69275.0,0.52402398]
[1730595009391,0.10008058,69276.0,69275.0,0.52402398]
[1730595009966,0.072193,69276.0,69275.0,0.52402398]
[1730595011471,0.07219,69280.0,69279.0,0.072189]
[1730595012676,0.072193,69276.0,69275.0,0.52478298]
[1730595012963,0.072193,69276.0,69275.0,0.52402298]
[1730595015672,0.072193,69276.0,69275.0,0.75677385]
[1730595017962,0.072189,69280.0,69279.0,0.072188]
[1730595018665,0.072189,69280.0,69279.0,0.16321798]
[1730595020168,0.072186,69282.0,69281.0,0.072187]
[1730595020678,0.02884378,69282.0,69281.0,0.17824956]
[1730595020866,0.3608,69285.0,69281.0,0.072187]
[1730595021466,0.072186,69282.0,69281.0,0.072187]
[1730595027776,0.072186,69282.0,69281.0,0.26436246]
[1730595028173,0.072186,69282.0,69281.0,0.17800344]
[1730595028371,0.072186,69282.0,69281.0,0.17804284]
[1730595028870,0.072186,69282.0,69281.0,0.26449493]
[1730595029071,0.072186,69282.0,69281.0,0.17804284]
[1730595029882,0.072186,69282.0,69281.0,0.30427619]
[1730595031172,0.072186,69282.0,69281.0,0.17804284]
[1730595031372,0.072186,69282.0,69281.0,0.30431026]
[1730595031569,0.072186,69282.0,69281.0,0.17804284]
[1730595032287,0.072186,69282.0,69281.0,0.30435014]
[1730595032982,0.072186,69282.0,69281.0,0.30447745]
[1730595033480,0.432986,69282.0,69281.0,0.30447745]
[1730595034000,0.072186,69282.0,69281.0,0.30447745]
[1730595034234,0.432986,69282.0,69281.0,0.30447745]
[1730595035082,0.072186,69282.0,69281.0,0.30447745]
[1730595035283,0.432986,69282.0,69281.0,0.30447745]
[1730595035985,0.49622847,69282.0,69281.0,0.072187]
[1730595036386,0.13542847,69282.0,69281.0,0.072187]
[1730595036582,0.49622847,69282.0,69281.0,0.072187]
[1730595038985,0.13542847,69282.0,69281.0,0.072187]
[1730595039182,0.49622847,69282.0,69281.0,0.072187]
[1730595039378,0.13542847,69282.0,69281.0,0.072187]
[1730595039579,0.49622847,69282.0,69281.0,0.072187]
[1730595040582,0.13542847,69282.0,69281.0,0.072187]
[1730595040782,0.49622847,69282.0,69281.0,0.072187]
[1730595041773,0.072192,69278.0,69277.0,0.072191]
[1730595041977,0.10007991,69278.0,69277.0,0.072191]
[1730595042781,0.072192,69278.0,69277.0,0.30494061]
[1730595048900,0.03607216,69278.0,69277.0,0.30494061]
[1730595049996,0.03607216,69278.0,69277.0,0.26504513]
[1730595051295,0.03607216,69278.0,69277.0,0.2644025]
[1730595055925,0.03607216,69278.0,69277.0,0.26439626]
[1730595056226,0.03607216,69278.0,69277.0,0.19220526]
[1730595056514,0.03607216,69278.0,69277.0,0.10553438]
[1730595057117,0.03607216,69278.0,69277.0,0.23136903]
[1730595057724,0.03607216,69278.0,69277.0,0.10553438]
[1730595058033,0.072194,69275.0,69274.0,0.033]
[1730595058324,0.13543711,69275.0,69274.0,0.033]
[1730595058627,0.1797521,69275.0,69274.0,0.033]
[1730595059236,0.33841212,69275.0,69274.0,0.033]
[1730595059530,0.23153382,69275.0,69274.0,0.033]
[1730595060218,0.1797521,69275.0,69274.0,0.033]
[1730595061924,0.27078208,69275.0,69274.0,0.033]
[1730595062115,0.3225638,69275.0,69274.0,0.033]
[1730595063119,0.36515534,69275.0,69274.0,0.033]
[1730595065027,0.20581552,69275.0,69274.0,0.41075507]
[1730595065218,0.13362152,69275.0,69274.0,0.41075507]
[1730595065925,0.20581552,69275.0,69274.0,0.41075507]
[1730595066131,0.16322398,69275.0,69274.0,0.41075507]
[1730595066328,0.072194,69275.0,69274.0,0.41075507]
[1730595066534,0.072194,69275.0,69274.0,0.57398005]
[1730595066837,0.43299,69279.0,69278.0,0.072191]
[1730595067116,0.43299,69279.0,69278.0,0.54057148]
[1730595067506,0.3109,69279.0,69278.0,0.54057148]
[1730595067895,0.3109,69279.0,69278.0,0.53989618]
[1730595068097,0.3109,69279.0,69278.0,0.39411699]
[1730595069507,0.3109,69279.0,69278.0,0.39409704]
[1730595071309,0.3608,69281.0,69280.0,0.072188]
[1730595071510,0.3608,69281.0,69280.0,0.30306406]
[1730595072407,0.3608,69281.0,69280.0,0.40832471]
[1730595072712,0.3608,69281.0,69280.0,0.3029962]
[1730595072905,0.3608,69281.0,69280.0,0.072188]
[1730595073109,0.3608,69281.0,69279.0,0.072189]
[1730595073309,0.3608,69281.0,69280.0,0.072188]
[1730595077020,0.072186,69282.0,69278.0,0.09102998]
[1730595077210,0.072186,69282.0,69281.0,0.072187]
[1730595077400,0.432986,69282.0,69281.0,0.072187]
[1730595082223,0.072186,69282.0,69281.0,0.072187]
[1730595082414,0.432986,69282.0,69281.0,0.072187]
[1730595083218,0.3608,69282.0,69281.0,0.072187]
[1730595083924,0.3608,69282.0,69281.0,0.11648133]
[1730595084509,0.04423434,69284.0,69283.0,0.072185]
[1730595084759,0.3608,69284.0,69283.0,0.072185]
[1730595084916,0.3608,69289.0,69288.0,0.07218]
[1730595085128,0.3608,69289.0,69288.0,0.26791585]
[1730595087014,0.3608,69289.0,69288.0,0.26755817]
[1730595087318,0.072177,69291.0,69289.0,0.072179]
[1730595087519,0.072177,69291.0,69289.0,0.17652719]
[1730595088318,0.06539763,69290.0,69284.0,0.0635]
[1730595088523,0.15865101,69285.0,69284.0,0.0635]
[1730595088828,0.15931272,69285.0,69284.0,0.22671398]
[1730595089120,0.18631671,69285.0,69284.0,0.22671398]
[1730595089521,0.10753981,69285.0,69284.0,0.22671398]
[1730595092118,0.25150188,69285.0,69284.0,0.22671398]
[1730595094168,0.10753981,69285.0,69284.0,0.22671398]
[1730595095325,0.14396207,69288.0,69284.0,0.33104218]
[1730595095632,0.14396207,69288.0,69287.0,0.072181]
[1730595095827,0.14396207,69288.0,69287.0,0.1765092]
[1730595097730,0.00216527,69290.0,69289.0,0.072179]
[1730595101925,0.00216527,69290.0,69289.0,0.24852439]
[1730595102126,0.00216527,69290.0,69289.0,0.17647196]
[1730595107834,0.00216527,69290.0,69289.0,0.24853733]
[1730595108133,0.00216527,69290.0,69289.0,0.17647196]
[1730595110324,0.10969892,69290.0,69288.0,0.09120543]
[1730595110523,0.1593036,69289.0,69287.0,0.33542157]
[1730595110726,0.1593036,69288.0,69287.0,0.40760257]
[1730595111031,0.10753365,69288.0,69287.0,0.40760257]
[1730595114531,0.10753344,69288.0,69287.0,0.11448998]
[1730595115068,0.10753344,69288.0,69287.0,0.20551996]
[1730595118435,0.18678392,69294.0,69287.0,0.58636355]
[1730595118639,0.18678392,69294.0,69293.0,0.072175]
[1730595118836,0.18678392,69294.0,69293.0,0.30500895]
[1730595119431,0.18678392,69294.0,69293.0,0.4060765]
[1730595119741,0.25895792,69294.0,69293.0,0.4060765]
[1730595120242,0.25895792,69294.0,69293.0,0.55350124]
[1730595120431,0.25895792,69294.0,69293.0,0.4060765]
[1730595120825,0.25895792,69294.0,69293.0,0.5534318]
[1730595125542,0.25895792,69294.0,69288.0,0.09102998]
[1730595125543,0.4182603,69294.0,69288.0,0.04764709]
[1730595125834,0.15930238,69293.0,69292.0,0.072176]
[1730595126035,0.23147738,69293.0,69292.0,0.072176]
[1730595128450,0.17970783,69293.0,69292.0,0.072176]
[1730595131342,0.17970776,69293.0,69292.0,0.072176]
[1730595132339,0.25882332,69293.0,69292.0,0.072176]
[1730595132749,0.17970776,69293.0,69292.0,0.072176]
[1730595133538,0.072175,69293.0,69292.0,0.17956691]
[1730595135947,0.072175,69293.0,69292.0,0.17956041]
[1730595137248,0.072175,69293.0,69292.0,0.3075566]
[1730595140450,0.03606303,69293.0,69292.0,0.3075332]
[1730595142658,0.03606303,69293.0,69292.0,0.17954886]
[1730595143751,0.03606303,69293.0,69292.0,0.30722326]
[1730595144441,0.03606303,69293.0,69292.0,0.17954886]
[1730595145256,0.03606303,69293.0,69292.0,0.17929729]
[1730595145550,0.03606303,69293.0,69292.0,0.30698336]
[1730595145756,0.03606303,69293.0,69292.0,0.17929729]
[1730595147552,0.06394492,69293.0,69292.0,0.072176]
[1730595147862,0.22274938,69293.0,69292.0,0.072176]
[1730595148048,0.14359681,69293.0,69292.0,0.072176]
[1730595152562,0.14359681,69293.0,69292.0,0.16320598]
[1730595153263,0.19536663,69293.0,69292.0,0.16320598]
[1730595154151,0.14359681,69293.0,69292.0,0.16320598]
[1730595154471,0.19536614,69293.0,69292.0,0.16320598]
[1730595154849,0.14359632,69293.0,69292.0,0.16320598]
[1730595155556,0.03606303,69293.0,69292.0,0.27033378]
[1730595158962,0.03606303,69293.0,69292.0,0.27029329]
[1730595162668,0.06394463,69293.0,69292.0,0.16320598]
[1730595163059,0.14359572,69293.0,69292.0,0.16320598]
[1730595168064,0.35417676,69293.0,69292.0,0.16320598]
[1730595168479,0.1953652,69293.0,69292.0,0.16320598]
[1730595168864,0.14359572,69293.0,69292.0,0.16320598]
[1730595169964,0.14359572,69293.0,69292.0,0.072176]
[1730595170175,0.14359572,69293.0,69292.0,0.05209965]
[1730595170566,0.14359572,69293.0,69292.0,0.28700411]
[1730595170567,0.03606303,69293.0,69292.0,0.28700411]
[1730595172678,0.03606303,69293.0,69292.0,0.28718031]
[1730595177574,0.10824953,69293.0,69292.0,0.05209965]
[1730595177875,0.06394478,69293.0,69292.0,0.05209965]
[1730595178198,0.14359628,69293.0,69292.0,0.05209965]
[1730595178377,0.19536604,69293.0,69292.0,0.05209965]
[1730595178577,0.14359628,69293.0,69292.0,0.05209965]
[1730595178766,0.06394478,69293.0,69292.0,0.05209965]
[1730595178973,0.14359628,69293.0,69292.0,0.05209965]
[1730595180570,0.14359628,69293.0,69292.0,0.03767971]
[1730595181069,0.06394478,69293.0,69292.0,0.03767971]
[1730595181268,0.1435963,69293.0,69292.0,0.03767971]
[1730595185279,0.14359615,69293.0,69292.0,0.03767971]
[1730595185586,0.3608,69296.0,69292.0,0.27281131]
[1730595185774,0.3608,69296.0,69295.0,0.08658095]
[1730595185969,0.3608,69296.0,69295.0,0.19389082]
[1730595186372,0.3608,69296.0,69295.0,0.10730987]
[1730595186878,0.432972,69296.0,69295.0,0.10730987]
[1730595189681,0.432972,69296.0,69292.0,0.08658095]
[1730595189886,0.072174,69294.0,69293.0,0.10711699]
[1730595190185,0.432974,69294.0,69293.0,0.10711699]
[1730595194596,0.432974,69294.0,69293.0,0.10709537]
[1730595195241,0.98936398,69294.0,69293.0,0.17926348]
[1730595195390,0.98936398,69294.0,69291.0,0.07216811]
[1730595195391,0.072176,69292.0,69291.0,0.07216811]
[1730595195691,0.072176,69292.0,69279.0,0.00216497]
[1730595195692,0.51788998,69294.0,69288.0,0.07216811]
[1730595195904,0.52400898,69289.0,69288.0,0.07216811]
[1730595196202,0.07218,69288.0,69287.0,0.07216811]
[1730595196400,0.09102998,69288.0,69286.0,0.07216811]
[1730595196594,0.19451098,69287.0,69286.0,0.07216811]
[1730595197100,0.62751098,69287.0,69286.0,0.07216811]
[1730595197494,0.072182,69286.0,69285.0,0.07216811]
[1730595197795,0.16321198,69286.0,69285.0,0.07216811]
[1730595197994,0.59621198,69286.0,69285.0,0.07216811]
[1730595198293,0.68593198,69286.0,69285.0,0.07216811]
[1730595202903,0.072187,69281.0,69279.0,0.00216497]
[1730595203103,0.432987,69281.0,69279.0,0.00216497]
[1730595209599,0.4608734,69281.0,69279.0,0.00216497]
[1730595210210,0.4766917,69281.0,69279.0,0.00216497]
[1730595214512,0.5045781,69281.0,69279.0,0.00216497]
[1730595216903,0.4045047,69281.0,69280.0,0.34716932]
[1730595217914,0.4766917,69281.0,69280.0,0.34716932]
[1730595218608,0.432987,69281.0,69280.0,0.41860625]
[1730595218809,0.432987,69281.0,69280.0,0.45070625]
[1730595220408,0.432987,69281.0,69280.0,0.41860625]
[1730595226727,0.072187,69281.0,69280.0,0.41860625]
[1730595227726,0.072187,69281.0,69280.0,0.41885102]
[1730595228620,0.072187,69281.0,69280.0,0.51979538]
[1730595230024,0.072187,69281.0,69280.0,0.66773211]
[1730595230433,0.072187,69281.0,69280.0,0.56678775]
[1730595230731,0.0360701,69281.0,69280.0,0.56678775]
[1730595231924,0.0360701,69281.0,69280.0,0.18451903]
[1730595231925,0.09930743,69281.0,69280.0,0.18451903]
[1730595232316,0.0993074,69281.0,69280.0,0.18451903]
[1730595236726,0.09930732,69281.0,69280.0,0.18451903]
[1730595238933,0.0360701,69281.0,69280.0,0.41826764]
[1730595239331,0.0360701,69281.0,69280.0,0.51934587]
[1730595241330,0.0360701,69281.0,69280.0,0.66690255]
[1730595241531,0.0360701,69281.0,69280.0,0.51934587]
[1730595242121,0.0360701,69281.0,69280.0,0.56582172]
[1730595244129,0.3608,69284.0,69280.0,0.56582172]
[1730595244337,0.072185,69283.0,69282.0,0.10108378]
[1730595244632,0.072185,69283.0,69282.0,0.48238647]
[1730595244934,0.072185,69283.0,69282.0,0.38130269]
[1730595246923,0.3608,69284.0,69282.0,0.106639]
[1730595247121,0.3608,69284.0,69280.0,0.18451903]
[1730595247122,0.3608,69284.0,69283.0,0.106639]
[1730595247322,0.072184,69284.0,69283.0,0.106639]
[1730595247531,0.432984,69284.0,69283.0,0.106639]
[1730595247835,0.432984,69284.0,69283.0,0.19328939]
[1730595248924,0.432984,69284.0,69283.0,0.106639]
[1730595249121,0.432984,69284.0,69283.0,0.19329374]
[1730595249332,0.072184,69284.0,69283.0,0.19329374]
[1730595249733,0.432984,69284.0,69283.0,0.106639]
[1730595250124,0.432984,69284.0,69283.0,0.19328844]
[1730595250330,0.072184,69284.0,69283.0,0.19328844]
[1730595250636,0.432984,69284.0,69283.0,0.19328844]
[1730595250936,0.432984,69284.0,69283.0,0.26547344]
[1730595251128,0.3608,69284.0,69283.0,0.178824]
[1730595251837,0.432984,69284.0,69283.0,0.178824]
[1730595252346,0.072184,69284.0,69283.0,0.178824]
[1730595252539,0.072184,69284.0,69283.0,0.30507574]
[1730595253132,0.072184,69284.0,69283.0,0.178824]
[1730595253842,0.072184,69284.0,69283.0,0.17810681]
[1730595254028,0.17973072,69284.0,69283.0,0.072185]
[1730595255038,0.25891089,69284.0,69283.0,0.072185]
[1730595255237,0.26638837,69284.0,69283.0,0.072185]
[1730595255438,0.10942202,69284.0,69283.0,0.57465557]
[1730595255642,0.05764672,69284.0,69283.0,0.57465557]
[1730595256333,0.00962202,69285.0,69284.0,0.505184]
[1730595256534,0.3608,69286.0,69285.0,0.072183]
[1730595256935,0.3608,69286.0,69285.0,0.505183]
[1730595257353,0.51951547,69286.0,69285.0,0.505183]
[1730595258141,0.51951547,69286.0,69285.0,0.072183]
[1730595258638,0.3608,69286.0,69285.0,0.072183]
[1730595258845,0.15871547,69287.0,69286.0,0.072182]
[1730595260549,0.15871547,69288.0,69287.0,0.072181]
[1730595261142,0.15871547,69288.0,69287.0,0.45364319]
[1730595263332,0.15871547,69288.0,69287.0,0.56642683]
[1730595264236,0.3608,69291.0,69287.0,0.49424583]
[1730595264445,0.3608,69291.0,69290.0,0.072178]
[1730595264646,0.072175,69293.0,69292.0,0.072176]
[1730595264847,0.432975,69293.0,69292.0,0.30445143]
[1730595266754,0.432975,69293.0,69292.0,0.39548141]
[1730595267248,0.432975,69293.0,69292.0,0.39507046]
[1730595269174,0.432975,69293.0,69292.0,0.16320598]
[1730595269846,0.072175,69293.0,69292.0,0.16320598]
[1730595274254,0.10005622,69293.0,69292.0,0.16320598]
[1730595276061,0.03606377,69293.0,69292.0,0.26893704]
[1730595276262,0.03606377,69293.0,69292.0,0.394974]
[1730595276467,0.03606377,69293.0,69292.0,0.3949821]
[1730595276850,0.01850807,69294.0,69292.0,0.3949821]
[1730595277050,0.01850807,69294.0,69293.0,0.10573913]
[1730595277862,0.09068207,69294.0,69293.0,0.17791413]
[1730595279367,0.09068207,69294.0,69293.0,0.30322778]
[1730595284266,0.11856329,69294.0,69293.0,0.072175]
[1730595284466,0.19821328,69294.0,69293.0,0.072175]
[1730595285658,0.24998205,69294.0,69293.0,0.072175]
[1730595285857,0.32160702,69294.0,69293.0,0.072175]
[1730595286062,0.24998205,69294.0,69293.0,0.072175]
[1730595288458,0.27731367,69294.0,69293.0,0.072175]
[1730595288771,0.35696366,69294.0,69293.0,0.072175]
[1730595288969,0.40873243,69294.0,69293.0,0.072175]
[1730595291272,0.09068207,69294.0,69293.0,0.26403336]
[1730595293169,0.09068207,69294.0,69293.0,0.17746126]
[1730595295072,0.09068207,69294.0,69293.0,0.1774286]
[1730595298781,0.09068207,69294.0,69293.0,0.30283507]
[1730595299175,0.09068207,69294.0,69293.0,0.072175]
[1730595299176,0.19821097,69294.0,69293.0,0.072175]
[1730595299373,0.19821097,69294.0,69292.0,0.04765165]
[1730595299607,0.05176766,69293.0,69292.0,0.11982765]
[1730595299774,0.15929656,69293.0,69292.0,0.11982765]
[1730595301977,0.23147156,69293.0,69292.0,0.072176]
[1730595305487,0.072179,69290.0,69289.0,0.072177]
[1730595305786,0.27073788,69290.0,69289.0,0.072177]
[1730595305985,0.32250554,69290.0,69289.0,0.072177]
[1730595306287,0.16320898,69290.0,69289.0,0.30381908]
[1730595307077,0.072179,69290.0,69289.0,0.30381908]
[1730595313991,0.072179,69290.0,69289.0,0.23164208]
[1730595314196,0.59616898,69290.0,69289.0,0.07220759]
[1730595314392,0.59616898,69290.0,69277.0,0.072191]
[1730595314393,0.52398998,69290.0,69285.0,0.07220759]
[1730595314595,0.072183,69285.0,69284.0,0.07220759]
[1730595314794,0.16321298,69285.0,69284.0,0.07220759]
[1730595315495,0.072184,69284.0,69283.0,0.07220759]
[1730595316186,0.072191,69278.0,69277.0,0.08664003]
[1730595316601,0.0305,69283.0,69277.0,0.12659466]
[1730595316795,0.0305,69283.0,69280.0,0.08655048]
[1730595317386,0.09102998,69281.0,69278.0,0.07211035]
[1730595317587,0.072191,69278.0,69275.0,0.07211035]
[1730595317889,0.072191,69278.0,69274.0,0.07211538]
[1730595317890,0.09102998,69276.0,69274.0,0.07211538]
[1730595318093,0.16322398,69275.0,69274.0,0.07211538]
[1730595318285,0.09102998,69275.0,69273.0,0.07211538]
[1730595318615,0.072197,69272.0,69271.0,0.07211538]
[1730595318993,0.3608,69273.0,69269.0,0.07211538]
[1730595318994,0.072199,69270.0,69269.0,0.07211538]
[1730595319192,0.072199,69270.0,69268.0,0.07211538]
[1730595319193,0.09102998,69270.0,69268.0,0.07211538]
[1730595319491,0.072202,69267.0,69266.0,0.1466188]
[1730595320499,0.072202,69267.0,69266.0,0.07450342]
[1730595321099,0.03607809,69267.0,69266.0,0.07450342]
[1730595329408,0.30295593,69269.0,69266.0,0.1801854]
[1730595329603,0.09102998,69270.0,69268.0,0.08628306]
[1730595329807,0.52402898,69270.0,69269.0,0.10568198]
[1730595332109,0.16322898,69270.0,69269.0,0.10568198]
[1730595332418,0.52402898,69270.0,69269.0,0.10568198]
[1730595332711,0.16322898,69270.0,69269.0,0.10568198]
[1730595332913,0.52402898,69270.0,69269.0,0.10568198]
[1730595334237,0.16322898,69270.0,69269.0,0.10568198]
[1730595334444,0.52402898,69270.0,69269.0,0.10568198]
[1730595334733,0.52402898,69270.0,69269.0,0.10501801]
[1730595334935,0.432999,69270.0,69269.0,0.17721801]
[1730595335756,0.072196,69274.0,69273.0,0.072192]
[1730595335940,0.072196,69274.0,69273.0,0.26823999]
[1730595336336,0.072196,69274.0,69273.0,0.17721001]
[1730595337544,0.072196,69274.0,69273.0,0.26349307]
[1730595339033,0.072196,69274.0,69273.0,0.17721001]
[1730595339841,0.072196,69274.0,69273.0,0.30235381]
[1730595340039,0.072196,69274.0,69273.0,0.17721001]
[1730595340340,0.072196,69274.0,69273.0,0.30239177]
[1730595344339,0.10008503,69274.0,69273.0,0.072192]
[1730595344536,0.10008503,69274.0,69273.0,0.11561753]
[1730595346729,0.10008503,69274.0,69273.0,0.072192]
[1730595348540,0.10008431,69274.0,69273.0,0.072192]
[1730595351445,0.40512292,69279.0,69273.0,0.30278122]
[1730595351632,0.40512292,69279.0,69270.0,0.16676448]
[1730595351633,0.072194,69275.0,69274.0,0.30278322]
[1730595353168,0.072194,69275.0,69274.0,0.30206314]
[1730595359459,0.100083,69275.0,69274.0,0.072194]
[1730595362049,0.13543848,69275.0,69274.0,0.072194]
[1730595365051,0.13543789,69275.0,69274.0,0.072194]
[1730595365454,0.13543791,69275.0,69274.0,0.072194]
[1730595366454,0.072191,69278.0,69274.0,0.37474629]
[1730595366657,0.3608,69279.0,69278.0,0.072191]
[1730595366856,0.3608,69279.0,69278.0,0.53796727]
[1730595368160,0.04367467,69281.0,69278.0,0.53796727]
[1730595368355,0.072187,69282.0,69280.0,0.072188]
[1730595368664,0.072187,69282.0,69281.0,0.30190062]
[1730595371467,0.11552791,69282.0,69281.0,0.30190062]
[1730595371770,0.20655789,69282.0,69281.0,0.30190062]
[1730595372016,0.20655789,69282.0,69281.0,0.22971362]
[1730595374567,0.072188,69280.0,69279.0,0.10110241]
[1730595374767,0.10007561,69280.0,69279.0,0.10110241]
[1730595374957,0.17974385,69280.0,69279.0,0.10110241]
[1730595376070,0.072189,69279.0,69278.0,0.07219]
[1730595376370,0.17974485,69279.0,69278.0,0.07219]
[1730595381570,0.13437089,69282.0,69278.0,0.5461964]
[1730595381767,0.072188,69280.0,69279.0,0.22858848]
[1730595383677,0.13437089,69282.0,69279.0,0.22772559]
[1730595383870,0.072187,69281.0,69280.0,0.22772559]
[1730595384881,0.505227,69281.0,69280.0,0.22772559]
[1730595386673,0.072187,69281.0,69280.0,0.22772559]
[1730595388567,0.072187,69281.0,69274.0,0.10108617]
[1730595388568,0.072194,69275.0,69274.0,0.10108617]
[1730595388776,0.17975703,69275.0,69274.0,0.10108617]
[1730595389078,0.23154112,69275.0,69274.0,0.10108617]
[1730595392075,0.27446014,69275.0,69274.0,0.10108617]
[1730595396163,0.23154112,69275.0,69274.0,0.10108617]
[1730595396369,0.10756303,69275.0,69273.0,0.072195]
[1730595396571,0.45318998,69278.0,69274.0,0.47287923]
[1730595396771,0.45182998,69278.0,69275.0,0.22791956]
[1730595396972,0.45182998,69278.0,69276.0,0.22791956]
[1730595397315,0.45182998,69278.0,69277.0,0.22791612]
[1730595397316,0.56815375,69278.0,69277.0,0.22791612]
[1730595401869,0.56815375,69278.0,69277.0,0.22732552]